Workbook

Sheet Лист1
I1: Приложение № 1 к постановлению Администрации Североуральского городского округа от 29.11.2018 № 1265
I2: Приложение № 2 к муниципальной программе Североуральского городского округа «Развитие жилищно-коммунального хозяйства и транспортного обслуживания населения, повышение энергетической эффективности и охрана окружающей среды в Североуральском городском округе» на 2014-2020 годы
A3: План мероприятий
A4: по выполнению муниципальной программы Североуральского городского округа
A5: «Развитие жилищно-коммунального хозяйства и транспортного обслуживания населения,
A6: повышение энергетической эффективности и охрана окружающей среды в Североуральском городском округе» на 2014-2020 годы
A8: № строки | B8: Наименование мероприятия/ Источники расходов на финансирование | C8: Объем расходов на выполнение мероприятия за счет всех источников ресурсного обеспечения, тыс. руб. | K8: Номер строки целевых показателей, на достижение которых направлены мероприятия
C9: Всего | D9: 2014 год | E9: 2015 год | F9: 2016 год | G9: 2017 год | H9: 2018 год | I9: 2019 год | J9: 2020 год
B10: 1 | C10: 2 | D10: 3 | E10: 4 | F10: 5 | G10: 6 | H10: 7 | I10: 8 | J10: 9 | K10: 10
A11: 1. | B11: ВСЕГО по муниципальной программе, в том числе: | C11: =SUM(D11:J11) -> 1218383.197 | D11: =SUM(D12+D15+D16) -> 283826.9 | E11: 348239.16 | F11: 216622.5876 | G11: 122867.7562 | H11: 94198.69374 | I11: 85106.4 | J11: 67521.7 | K11: Х
A12: 1.1. | B12: местный бюджет, в т.ч.: | C12: 676450.3888 | D12: =SUM(D13:D14) -> 92792.8 | E12: 126635.26 | F12: 117147.5734 | G12: 96239.06172 | H12: 92930.39374 | I12: 84140.4 | J12: 66564.9
B13: - местный бюджет | C13: 676255.1233 | D13: =SUM(D18+D23) -> 92792.8 | E13: 126635.26 | F13: 117147.5734 | G13: 96043.79612 | H13: 92930.39374 | I13: 84140.4 | J13: 66564.9
B14: - средства заинтересованных лиц | C14: 195.2656 | D14: =SUM(D24) -> 0 | E14: 0 | F14: 0 | G14: 195.2656 | H14: 0 | I14: 0 | J14: 0
A15: 1.2. | B15: областной бюджет | C15: 338844.6481 | D15: =SUM(D19+D25) -> 109216.1 | E15: 135104.3 | F15: 81477.35126 | G15: 9855.79685 | H15: 1268.3 | I15: 966 | J15: 956.8
A16: 1.3. | B16: федеральный бюджет | C16: 203088.1605 | D16: =SUM(D26+D20) -> 81818 | E16: 86499.6 | F16: 17997.66293 | G16: 16772.89759 | H16: 0 | I16: 0 | J16: 0
A17: 2. | B17: Капитальные вложения | C17: =SUM(C18:C20) -> 653776.141 | D17: =SUM(D18:D20) -> 232761.9 | E17: =SUM(E18:E20) -> 271669 | F17: 133207.8847 | G17: 16137.35632 | H17: 0 | I17: 0 | J17: 0 | K17: Х
A18: 2.1. | B18: местный бюджет | C18: =SUM(D18:J18) -> 137171.7572 | D18: =D34+D130+D202+D222+D253+D288+D357+D379 -> 44727.8 | E18: =E34+E130+E202+E222+E253+E288+E357+E379 -> 50411.3 | F18: =F34+F130+F202+F222+F253+F288+F357+F379 -> 34707.97051 | G18: =G34+G130+G202+G222+G253+G288+G357+G379+G416 -> 7324.68673 | H18: =H34+H130+H202+H222+H253+H288+H357+H379 -> 0 | I18: =I34+I130+I202+I222+I253+I288+I357+I379 -> 0 | J18: =J34+J130+J202+J222+J253+J288+J357+J379 -> 0
A19: 2.2. | B19: областной бюджет | C19: 329148.1133 | D19: =D131+D223+D35 -> 106216.1 | E19: =E131+E223+E35 -> 134758.1 | F19: =F131+F223 -> 80502.25126 | G19: =G131+G223 -> 7671.662 | H19: =H131+H223 -> 0 | I19: =I131+I223 -> 0 | J19: =J131+J223 -> 0
A20: 2.3. | B20: федеральный бюджет | C20: 187456.2705 | D20: =D224 -> 81818 | E20: =E224 -> 86499.6 | F20: 17997.66293 | G20: 1141.00759 | H20: 0 | I20: 0 | J20: 0
A21: 3. | B21: Прочие нужды | C21: 771335.6193 | D21: =SUM(D22:D25) -> 99130 | E21: =SUM(E22:E25) -> 152794.12 | F21: =SUM(F22:F25) -> 165854.3058 | G21: =SUM(G26+G25+G22) -> 106730.3998 | H21: =SUM(H26+H25+H22) -> 94198.69374 | I21: =SUM(I26+I25+I22) -> 85106.4 | J21: =SUM(J26+J25+J22) -> 67521.7 | K21: Х
A22: 3.1. | B22: местный бюджет, в т.ч.: | C22: =SUM(D22:J22) -> 539278.6316 | D22: =D49+D176+D211+D240+D297+D366+D395+D262+D345 -> 48065 | E22: =E49+E176+E211+E240+E297+E366+E395+E262+E345 -> 76223.96 | F22: =F49+F176+F211+F240+F297+F366+F395+F262+F345 -> 82439.60288 | G22: =SUM(G23:G24) -> 88914.37499 | H22: =H49+H176+H211+H240+H297+H366+H395+H262+H345 -> 92930.39374 | I22: =I49+I176+I211+I240+I297+I366+I395+I262+I345 -> 84140.4 | J22: =J49+J176+J211+J240+J297+J366+J395+J262+J345 -> 66564.9
B23: - местный бюджет | C23: 539083.366 | D23: =SUM(D49+D176+D211+D240+D262+D297+D345+D366+D395+D432) -> 48065 | E23: 76223.96 | F23: 82439.60288 | G23: 88719.10939 | H23: 92930.39374 | I23: 84140.4 | J23: 66564.9
B24: - средства заинтересованных лиц | C24: 195.2656 | D24: =SUM(D433) -> 0 | E24: 0 | F24: 0 | G24: 195.2656 | H24: 0 | I24: 0 | J24: 0
A25: 3.2. | B25: областной бюджет | C25: =SUM(D25:J25) -> 9696.53485 | D25: =SUM(D177+D394+D50+D263+D434) -> 3000 | E25: 346.2 | F25: 975.1 | G25: 2184.13485 | H25: 1268.3 | I25: 966 | J25: 956.8
A26: 3.3. | B26: федеральный бюджет | C26: 15631.89 | D26: 0 | E26: =E177 -> 0 | F26: =F177 -> 0 | G26: =SUM(G435) -> 15631.89 | H26: =SUM(H435) -> 0 | I26: =SUM(I435) -> 0 | J26: =SUM(J435) -> 0
A27: 4. | B27: Подпрограмма 1: Комплексное благоустройство территории Североуральского городского округа
A28: 4.1. | B28: Всего по подпрограмме 1, | C28: =SUM(C30+C31) -> 228761.0426 | D28: =SUM(D30:D31) -> 25725.2 | E28: 29762.2 | F28: 47222.84145 | G28: 35527.97723 | H28: 38648.22392 | I28: 25941.9 | J28: 25932.7 | K28: Х
B29: в том числе:
A30: 4.2. | B30: местный бюджет | C30: =SUM(D30:J30) -> 219112.7426 | D30: =SUM(D34+D49) -> 24510.5 | E30: 26102.3 | F30: 46247.74145 | G30: =SUM(G34+G49) -> 34564.47723 | H30: 37693.92392 | I30: 24996.9 | J30: 24996.9
A31: 4.3. | B31: областной бюджет | C31: =SUM(D31:J31) -> 9648.3 | D31: 1214.7 | E31: 3659.9 | F31: 975.1 | G31: 963.5 | H31: 954.3 | I31: 945 | J31: 935.8
A32: 5. | B32: 1. Капитальные вложения
A33: 5.1. | B33: Всего по направлению «Капитальные вложения» всего, в том числе | C33: =SUM(D33:J33) -> 15605.1 | D33: =SUM(D34+D35) -> 3536.4 | E33: =SUM(E34+E35) -> 3674.7 | F33: =SUM(F34) -> 4819 | G33: =SUM(G34) -> 3575 | H33: =SUM(H34) -> 0 | I33: =SUM(I34) -> 0 | J33: =SUM(J34) -> 0 | K33: Х
A34: 5.2. | B34: местный бюджет | C34: =SUM(D34:J34) -> 11076.7 | D34: =SUM(D45) -> 2321.7 | E34: =SUM(E45) -> 361 | F34: =SUM(F45) -> 4819 | G34: =SUM(G38+G41) -> 3575 | H34: 0 | I34: 0 | J34: 0
A35: 5.3. | B35: областной бюджет | C35: =SUM(D35:J35) -> 4528.4 | D35: =SUM(D42) -> 1214.7 | E35: =SUM(E42) -> 3313.7 | F35: 0 | G35: =SUM(G42) -> 0 | H35: 0 | I35: 0 | J35: 0
A36: 6. | B36: 1.1. Бюджетные инвестиции в объекты капитального строительства
A37: 6.1. | B37: Бюджетные инвестиции в объекты капитального строительства всего, в том числе | C37: 0 | D37: 0 | E37: 0 | F37: 0 | G37: 0 | H37: 0 | I37: 0 | J37: 0 | K37: Х
A38: 6.2. | B38: местный бюджет | C38: 0 | D38: 0 | E38: 0 | F38: 0 | G38: 0 | H38: 0 | I38: 0 | J38: 0
A39: 7. | B39: 1.2. Иные капитальные вложения
A40: 7.1. | B40: Всего | C40: =SUM(D40:J40) -> 15605.1 | D40: =SUM(D41:D42) -> 3536.4 | E40: =SUM(E41:E42) -> 3674.7 | F40: 4819 | G40: 3575 | H40: 0 | I40: 0 | J40: 0 | K40: Х
A41: 7.2. | B41: местный бюджет | C41: =SUM(D41:J41) -> 11076.7 | D41: =SUM(D45) -> 2321.7 | E41: 361 | F41: 4819 | G41: 3575 | H41: 0 | I41: 0 | J41: 0
A42: 7.3. | B42: областной бюджет | C42: =SUM(D42:J42) -> 4528.4 | D42: =SUM(D46) -> 1214.7 | E42: =SUM(E46) -> 3313.7 | F42: 0 | G42: =SUM(G46) -> 0 | H42: 0 | I42: 0 | J42: 0
A43: 8. | B43: Мероприятие 1 Благоустройство дворовых территорий Североуральского городского округа
A44: 8.1. | B44: Всего, из них | C44: =SUM(D44:J44) -> 15605.1 | D44: =D45+D46 -> 3536.4 | E44: =SUM(E45:E46) -> 3674.7 | F44: =SUM(F45) -> 4819 | G44: =SUM(G45) -> 3575 | H44: =SUM(H45) -> 0 | I44: =SUM(I45) -> 0 | J44: =SUM(J45) -> 0 | K44: стр. 4
A45: 8.2. | B45: местный бюджет | C45: =SUM(D45:J45) -> 11076.7 | D45: 2321.7 | E45: 361 | F45: 4819 | G45: 3575 | H45: 0 | I45: 0 | J45: 0
A46: 8.3. | B46: областной бюджет | C46: =D46+E46+F46+G46+H46+I46+J46 -> 4528.4 | D46: 1214.7 | E46: 3313.7 | F46: 0 | G46: 0 | H46: 0 | I46: 0 | J46: 0
A47: 9. | B47: 3. Прочие нужды
A48: 9.1. | B48: Всего по направлению «Прочие нужды», всего, в том числе: | C48: =SUM(D48:J48) -> 213155.9426 | D48: =SUM(D49:D50) -> 22188.8 | E48: 26087.5 | F48: 42403.84145 | G48: 31952.97723 | H48: 38648.22392 | I48: 25941.9 | J48: 25932.7 | K48: Х
A49: 9.2. | B49: местный бюджет | C49: =SUM(D49:J49) -> 208036.0426 | D49: =SUM(D60+D69+D72+D75+D53+D122) -> 22188.8 | E49: 25741.3 | F49: 41428.74145 | G49: 30989.47723 | H49: 37693.92392 | I49: 24996.9 | J49: 24996.9
A50: 9.3. | B50: областной бюджет | C50: =SUM(D50:J50) -> 5119.9 | D50: =SUM(D76) -> 0 | E50: =SUM(E76) -> 346.2 | F50: =SUM(F123) -> 975.1 | G50: =SUM(G123) -> 963.5 | H50: =SUM(H123) -> 954.3 | I50: =SUM(I123) -> 945 | J50: =SUM(J123) -> 935.8
A51: 10. | B51: Мероприятие 1 Благоустройство дворовых территорий Североуральского городского округа
A52: 10.1. | B52: Всего, из них | C52: =SUM(D52:J52) -> 6134.745 | D52: =D53+D54 -> 310.9 | E52: =SUM(E53) -> 436 | F52: 2681 | G52: 500 | H52: 1206.845 | I52: 500 | J52: 500 | K52: стр. 4
A53: 10.2. | B53: местный бюджет | C53: =SUM(D53:J53) -> 6134.745 | D53: 310.9 | E53: 436 | F53: 2681 | G53: 500 | H53: 1206.845 | I53: 500 | J53: =SUM(I53) -> 500
A54: 10.3. | B54: областной бюджет | C54: =D54+E54+F54+G54+H54+I54+J54 -> 0 | D54: 0 | E54: 0 | F54: 0 | G54: 0 | H54: 0 | I54: 0 | J54: 0
A55: 11. | B55: Мероприятие 2 Благоустройство парков и скверов в городе Североуральске
A56: 11.1. | B56: Всего, из них | C56: =SUM(D56:J56) -> 0 | D56: =D57+D58 -> 0 | E56: =SUM(E57) -> 0 | F56: 0 | G56: 0 | H56: 0 | I56: 0 | J56: 0 | K56: Х
A57: 11.2. | B57: местный бюджет | C57: =SUM(D57:J57) -> 0 | D57: 0 | E57: 0 | F57: 0 | G57: 0 | H57: =SUM(G57) -> 0 | I57: =SUM(H57) -> 0 | J57: =SUM(I57) -> 0
A58: 12. | B58: Мероприятие 3- Уличное освещение
A59: 12.1. | B59: Всего, в том числе: | C59: =SUM(D59:J59) -> 106562.6948 | D59: =SUM(D60) -> 12001 | E59: 12600 | F59: 18150.6908 | G59: 15955 | H59: 21456.004 | I59: 13200 | J59: 13200 | K59: стр.8. с 2017 года стр. 9
A60: 12.2. | B60: местный бюджет | C60: =SUM(D60:J60) -> 106562.6948 | D60: =SUM(D63+D66) -> 12001 | E60: 12600 | F60: 18150.6908 | G60: 15955 | H60: 21456.004 | I60: 13200 | J60: 13200
A61: 12.3. | B61: - Обеспечение бесперебойной подачи электроэнергии
A62: 12.4. | B62: Всего: | C62: =SUM(D62:J62) -> 76043.0884 | D62: =SUM(D63) -> 8644.1 | E62: =SUM(E63) -> 8800 | F62: 10660.6908 | G62: 13098.2976 | H62: 15000 | I62: 9920 | J62: 9920 | K62: стр.8. с 2017 года стр. 9
A63: 12.5. | B63: местный бюджет | C63: =SUM(D63:J63) -> 76043.0884 | D63: 8644.1 | E63: 8800 | F63: 10660.6908 | G63: 13098.2976 | H63: 15000 | I63: 9920 | J63: 9920
A64: 12.6. | B64: - Содержание и ремонт сетей уличного освещения
A65: 12.7. | B65: Всего: | C65: =SUM(D65:J65) -> 30519.6064 | D65: =SUM(D66) -> 3356.9 | E65: =SUM(E66) -> 3800 | F65: 7490 | G65: 2856.7024 | H65: 6456.004 | I65: 3280 | J65: 3280 | K65: стр.8. с 2017 года стр. 9
A66: 12.8. | B66: местный бюджет | C66: =SUM(D66:J66) -> 30519.6064 | D66: 3356.9 | E66: 3800 | F66: 7490 | G66: 2856.7024 | H66: 6456.004 | I66: 3280 | J66: 3280
A67: 13. | B67: Мероприятие 4 - Озеленение (цветники, валка сухих деревьев)
A68: 13.1. | B68: Всего, из них | C68: =SUM(D68:J68) -> 22120.09895 | D68: =SUM(D69) -> 2890.9 | E68: 2148 | F68: 3923.84386 | G68: 3352.35509 | H68: 3200 | I68: 3302.5 | J68: 3302.5 | K68: стр.11
A69: 13.2. | B69: местный бюджет | C69: =SUM(D69:J69) -> 22120.09895 | D69: 2890.9 | E69: 2148 | F69: 3923.84386 | G69: 3352.35509 | H69: 3200 | I69: 3302.5 | J69: 3302.5
A70: 14. | B70: Мероприятие 5 - Организация и содержание мест захоронения
A71: 14.1. | B71: Всего, из них | C71: =SUM(D71:J71) -> 20054.36851 | D71: =SUM(D72) -> 2263.1 | E71: 2306.9 | F71: 3619.44212 | G71: 2961.65639 | H71: 3181.67 | I71: 2860.8 | J71: 2860.8 | K71: стр.16
A72: 14.2. | B72: местный бюджет | C72: =SUM(D72:J72) -> 20054.36851 | D72: 2263.1 | E72: 2306.9 | F72: 3619.44212 | G72: 2961.65639 | H72: 3181.67 | I72: 2860.8 | J72: =SUM(I72) -> 2860.8
A73: 15. | B73: Мероприятие 6 - Прочие мероприятия по благоустройству
A74: 15.1. | B74: Всего, в том числе: | C74: =SUM(D74:J74) -> 51587.88534 | D74: =SUM(D75:D76) -> 4722.9 | E74: =SUM(E75:E76) -> 8596.6 | F74: 12256.96467 | G74: 8014.41575 | H74: 8129.80492 | I74: 4933.6 | J74: 4933.6 | K74: стр.5,5.1.,6,11,13,14,15,17
A75: 15.2. | B75: местный бюджет | C75: =SUM(D75:J75) -> 51241.68534 | D75: =SUM(D79+D82+D89+D92+D98+D95+D101+D107+D104+D85+D110+D113) -> 4722.9 | E75: =SUM(E79+E82+E89+E92+E98+E95+E101+E107+E104+E85+E110+E113) -> 8250.4 | F75: =SUM(F79+F82+F89+F92+F98+F95+F101+F107+F104+F85+F110+F113) -> 12256.96467 | G75: =SUM(G79+G82+G89+G92+G98+G95+G101+G107+G104+G85+G110+G113) -> 8014.41575 | H75: =SUM(H79+H82+H89+H92+H98+H95+H101+H107+H104+H85+H110+H113+H116+H119) -> 8129.80492 | I75: =SUM(I79+I82+I89+I92+I98+I95+I101+I107+I104+I85+I110+I113+I116+I119) -> 4933.6 | J75: =SUM(J79+J82+J89+J92+J98+J95+J101+J107+J104+J85+J110+J113+J116+J119) -> 4933.6
A76: 15.3. | B76: областной бюджет | C76: =SUM(D76:J76) -> 346.2 | D76: =SUM(D86) -> 0 | E76: =SUM(E86) -> 346.2 | F76: 0 | G76: 0 | H76: 0 | I76: 0 | J76: 0
A77: 15.4. | B77: - Содержание памятников
A78: 15.5. | B78: Всего: | C78: =SUM(C79) -> 3006.85888 | D78: 369.2 | E78: 404.9 | F78: 384.30006 | G78: 466.45882 | H78: 500 | I78: 441 | J78: 441 | K78: стр. 17
A79: 15.6. | B79: местный бюджет | C79: =SUM(D79:J79) -> 3006.85888 | D79: 369.2 | E79: 404.9 | F79: 384.30006 | G79: 466.45882 | H79: 500 | I79: 441 | J79: 441
A80: 15.7. | B80: - Уход за объектами благоустройства
A81: 15.8. | B81: Всего: | C81: =SUM(C82) -> 7960.14965 | D81: =SUM(D82) -> 1098.7 | E81: =SUM(E82) -> 976.1 | F81: 999.8138 | G81: 1147.68593 | H81: 1312.24992 | I81: 1212.8 | J81: 1212.8 | K81: стр. 5
A82: 15.9. | B82: местный бюджет | C82: =SUM(D82:J82) -> 7960.14965 | D82: 1098.7 | E82: 976.1 | F82: 999.8138 | G82: 1147.68593 | H82: 1312.24992 | I82: 1212.8 | J82: 1212.8
A83: 15.10. | B83: - Регулирование численности безнадзорных животных
A84: 15.11. | B84: Всего: | C84: =SUM(D84:J84) -> 1677.2 | D84: =SUM(D85:D86) -> 500 | E84: =SUM(E85:E86) -> 1177.2 | F84: 0 | G84: 0 | H84: 0 | I84: 0 | J84: 0 | K84: стр. 13
A85: 15.12. | B85: местный бюджет | C85: =SUM(D85:J85) -> 1331 | D85: 500 | E85: 831 | F85: 0 | G85: 0 | H85: 0 | I85: =SUM(H85) -> 0 | J85: =SUM(I85) -> 0
A86: 15.13. | B86: областной бюджет | C86: =SUM(D86:J86) -> 346.2 | E86: 346.2
A87: 15.14. | B87: - Содержание биоямы (скотомогильник)
A88: 15.15. | B88: Всего: | C88: =SUM(C89) -> 747.98218 | D88: =SUM(D89) -> 116.1 | E88: =SUM(E89) -> 69.3 | F88: 77.02912 | G88: 74.75306 | H88: 80 | I88: 165.4 | J88: 165.4 | K88: стр.15
A89: 15.16. | B89: местный бюджет | C89: =SUM(D89:J89) -> 747.98218 | D89: 116.1 | E89: 69.3 | F89: 77.02912 | G89: 74.75306 | H89: 80 | I89: 165.4 | J89: 165.4
A90: 15.17. | B90: - Обустройство и эксплуатация новогодних городков
A91: 15.18. | B91: Всего: | C91: =SUM(C92) -> 18901.9 | D91: =SUM(D92) -> 1685.5 | E91: =SUM(E92) -> 2669.2 | F91: 2900 | G91: 3120 | H91: 3820 | I91: 2353.6 | J91: 2353.6 | K91: стр.5
A92: 15.19. | B92: местный бюджет | C92: =SUM(D92:J92) -> 18901.9 | D92: 1685.5 | E92: 2669.2 | F92: 2900 | G92: 3120 | H92: 3820 | I92: 2353.6 | J92: 2353.6
A93: 15.20. | B93: - Приобретение декоративного освещения для улиц города Североуральска, ремонт светодиодных консолей
A94: 15.21. | B94: Всего: | C94: =SUM(C95) -> 3852.4 | D94: =SUM(D95) -> 773.4 | E94: =SUM(E95) -> 1701 | F94: 0 | G94: 560 | H94: 158 | I94: 330 | J94: 330 | K94: стр.5
A95: 15.22. | B95: местный бюджет | C95: =SUM(D95:J95) -> 3852.4 | D95: 773.4 | E95: 1701 | F95: 0 | G95: 560 | H95: 158 | I95: 330 | J95: =SUM(I95) -> 330
A96: 15.26. | B96: - Акарицидная обработка общественных мест
A97: 15.27. | B97: Всего: | C97: =SUM(C98) -> 1093.8899 | D97: =SUM(D98) -> 92 | E97: =SUM(E98) -> 99.9 | F97: 99.9899 | G97: 45 | H97: 95.4 | I97: 330.8 | J97: 330.8 | K97: стр.14
A98: 15.28. | B98: местный бюджет | C98: =SUM(D98:J98) -> 1093.8899 | D98: 92 | E98: 99.9 | F98: 99.9899 | G98: 45 | H98: 95.4 | I98: 330.8 | J98: 330.8
A99: 15.29. | B99: - Приобретение грунта плодородного (земли садовой)
A100: 15.30. | B100: Всего: | C100: =SUM(C101) -> 537 | D100: =SUM(D101) -> 88 | E100: =SUM(E101) -> 0 | F100: 150 | G100: 99 | H100: 0 | I100: 100 | J100: 100 | K100: стр.11
A101: 15.31. | B101: местный бюджет | C101: =SUM(D101:J101) -> 537 | D101: 88 | E101: 0 | F101: 150 | G101: 99 | H101: 0 | I101: 100 | J101: 100
A102: 15.32. | B102: - Приобретение и установка металлических урн и скамеек
A103: 15.33. | B103: Всего: | C103: =SUM(C104) -> 1710.25802 | D103: =SUM(D104) -> 0 | E103: =SUM(E104) -> 0 | F103: 1710.25802 | G103: 0 | H103: 0 | I103: 0 | J103: 0 | K103: стр.6
A104: 15.34. | B104: местный бюджет | C104: =SUM(D104:J104) -> 1710.25802 | D104: 0 | E104: 0 | F104: 1710.25802 | G104: 0 | H104: 0 | I104: 0 | J104: =SUM(I104) -> 0
A105: 15.35. | B105: - Благоустройство мест общего пользования территории Североуральского городского округа
A106: 15.36. | B106: Всего: | C106: =SUM(C107) -> 9561.04171 | D106: =SUM(D107) -> 0 | E106: =SUM(E107) -> 1499 | F106: 5935.57377 | G106: 2093.46794 | H106: 33 | I106: 0 | J106: 0 | K106: стр.5
A107: 15.37. | B107: местный бюджет | C107: =SUM(D107:J107) -> 9561.04171 | D107: 0 | E107: 1499 | F107: 5935.57377 | G107: 2093.46794 | H107: 33 | I107: 0 | J107: =SUM(I107) -> 0
A108: 15.38. | B108: - Обустройство источника нецентрализованного водоснабжения в п. Сосьва
A109: 15.39. | B109: Всего: | C109: =SUM(C110) -> 58.05 | D109: =SUM(D110) -> 0 | E109: =SUM(E110) -> 0 | F109: 0 | G109: 58.05 | H109: 0 | I109: 0 | J109: 0 | K109: стр.5
A110: 15.40. | B110: местный бюджет | C110: =SUM(D110:J110) -> 58.05 | D110: 0 | E110: 0 | F110: 0 | G110: 58.05 | H110: 0 | I110: 0 | J110: =SUM(I110) -> 0
A111: 15.41. | B111: - Разработка проектно-сметной документации и проведение ценовой экспертизы скверов, парков и аллей Североуральского городского округа
A112: 15.42. | B112: Всего: | C112: =SUM(C113) -> 733.155 | D112: =SUM(D113) -> 0 | E112: =SUM(E113) -> 0 | F112: 0 | G112: 350 | H112: 383.155 | I112: 0 | J112: 0 | K112: стр.5.1.
A113: 15.43. | B113: местный бюджет | C113: =SUM(D113:J113) -> 733.155 | D113: 0 | E113: 0 | F113: 0 | G113: 350 | H113: 383.155 | I113: 0 | J113: =SUM(I113) -> 0
A114: 15.44. | B114: - Приобретение и установка остановочных комплексов на территории Североуральского городского округа
A115: 15.45. | B115: Всего: | C115: =SUM(C116) -> 1500 | D115: =SUM(D116) -> 0 | E115: =SUM(E116) -> 0 | F115: 0 | G115: 0 | H115: 1500 | I115: 0 | J115: 0 | K115: стр.5.2.
A116: 15.46. | B116: местный бюджет | C116: =SUM(D116:J116) -> 1500 | D116: 0 | E116: 0 | F116: 0 | G116: 0 | H116: 1500 | I116: 0 | J116: =SUM(I116) -> 0
A117: 15.47. | B117: - Изготовление и установка информационных стендов у здания Администрации Североуральского городского округа
A118: 15.48. | B118: Всего: | C118: =SUM(C119) -> 248 | D118: =SUM(D119) -> 0 | E118: =SUM(E119) -> 0 | F118: 0 | G118: 0 | H118: 248 | I118: 0 | J118: 0 | K118: стр.5.3.
A119: 15.49. | B119: местный бюджет | C119: =SUM(D119:J119) -> 248 | D119: 0 | E119: 0 | F119: 0 | G119: 0 | H119: 248 | I119: 0 | J119: =SUM(I119) -> 0
A120: 16. | B120: Мероприятие 7 - Регулирование численности безнадзорных животных
A121: 16.1. | B121: Всего, из них | C121: =SUM(D121:J121) -> 6696.15 | D121: =SUM(D122:D123) -> 0 | E121: =SUM(E122:E123) -> 0 | F121: 1771.9 | G121: 1169.55 | H121: 1473.9 | I121: 1145 | J121: 1135.8 | K121: стр.13
A122: 16.2. | B122: местный бюджет | C122: =SUM(D122:J122) -> 1922.45 | D122: 0 | E122: 0 | F122: 796.8 | G122: 206.05 | H122: 519.6 | I122: 200 | J122: 200
A123: 16.3. | B123: областной бюджет | C123: =SUM(D123:J123) -> 4773.7 | E123: 0 | F123: 975.1 | G123: 963.5 | H123: 954.3 | I123: 945 | J123: 935.8
A124: 17. | B124: Подпрограмма 2: Муниципальная программа по энергосбережению и повышению энергетической эффективности объектов Североуральского городского округа
A125: 17.1. | B125: Всего по подпрограмме 2, в том числе | C125: =SUM(D125:J125) -> 88181.30978 | D125: =SUM(D126:D127) -> 9165.5 | E125: 2961.6 | F125: 15455.86781 | G125: 16404.34197 | H125: 20418.5 | I125: 21775.5 | J125: 2000 | K125: Х
A126: 17.2. | B126: местный бюджет | C126: =SUM(D126:J126) -> 81836.90978 | D126: =SUM(D130+D176) -> 2821.1 | E126: =SUM(E130+E176) -> 2961.6 | F126: =F130+F176 -> 15455.86781 | G126: =SUM(G130+G176) -> 16404.34197 | H126: 20418.5 | I126: 21775.5 | J126: 2000
A127: 17.3. | B127: областной бюджет | C127: =SUM(D127:J127) -> 6344.4 | D127: =SUM(D131+D177) -> 6344.4 | E127: =SUM(E131+E177) -> 0 | F127: =SUM(F131+F177) -> 0 | G127: 0 | H127: 0 | I127: 0 | J127: 0
A128: 18. | B128: 1. Капитальные вложения
A129: 18.1. | B129: Всего по направлению «Капитальные вложения», всего, в том числе | C129: =SUM(C130:C131) -> 22520.55117 | D129: 4173.6 | E129: 1420 | F129: 14122.6092 | G129: 2804.34197 | H129: 0 | I129: 0 | J129: 0 | K129: Х
A130: 18.2. | B130: местный бюджет | C130: =SUM(D130:J130) -> 19176.15117 | D130: =SUM(D164+D134) -> 829.2 | E130: 1420 | F130: 14122.6092 | G130: 2804.34197 | H130: 0 | I130: 0 | J130: 0
A131: 18.3. | B131: областной бюджет | C131: =SUM(D131:J131) -> 3344.4 | D131: =SUM(D165+D135) -> 3344.4 | E131: 0 | F131: 0 | G131: 0 | H131: 0 | I131: 0 | J131: 0
A132: 19. | B132: 1.1. Бюджетные инвестиции в объекты капитального строительства
A133: 19.1. | B133: Бюджетные инвестиции в объекты капитального строительства всего, в том числе | C133: =SUM(D133:J133) -> 16926.95117 | D133: =SUM(D134:D135) -> 0 | E133: =SUM(E134:E135) -> 0 | F133: 14122.6092 | G133: 2804.34197 | H133: 0 | I133: 0 | J133: 0 | K133: Х
A134: 19.2. | B134: местный бюджет | C134: =SUM(D134:J134) -> 16926.95117 | D134: =SUM(D138+D150+D153+D157+D160) -> 0 | E134: 0 | F134: 14122.6092 | G134: 2804.34197 | H134: 0 | I134: 0 | J134: 0
A135: 19.3. | B135: областной бюджет | C135: =SUM(D135:J135) -> 0 | D135: =SUM(D139+D154+D161) -> 0 | E135: =SUM(E139+E154+E161) -> 0 | F135: 0 | G135: 0 | H135: 0 | I135: 0 | J135: 0
A136: 20. | B136: Мероприятие 3 - Закупка и установка осветительного оборудования с заменой неэффективного на энергосберегающее, в том числе замена ламп накаливания на энергосберегающие, строительство, модернизация сетей уличного освещения, проектно-сметные работы, экспертиза проектно-сметной документации
A137: 20.1. | B137: Всего, из них | C137: =SUM(C138:C139) -> 14458.20066 | D137: =SUM(D138:D139) -> 0 | E137: =SUM(E138:E139) -> 0 | F137: 12330 | G137: 2128.20066 | H137: 0 | I137: 0 | J137: 0 | K137: стр.28
A138: 20.2. | B138: местный бюджет | C138: =SUM(D138:J138) -> 14458.20066 | D138: 0 | E138: 0 | F138: =SUM(F146+F142) -> 12330 | G138: =SUM(G146+G142) -> 2128.20066 | H138: 0 | I138: =SUM(H138) -> 0 | J138: 0
A139: 20.3. | B139: областной бюджет | C139: =SUM(D139:J139) -> 0 | D139: 0 | E139: 0 | F139: 0 | G139: 0 | H139: 0 | I139: 0 | J139: 0
A140: 20.4. | B140: - Разработка ПСД на строительство сетей уличного освещения микрорайона Южный
A141: 20.5. | B141: Всего: | C141: =SUM(C142) -> 283.20066 | D141: 0 | E141: 0 | F141: 283.20066 | G141: 0 | H141: 0 | I141: 0 | J141: 0 | K141: стр.28
A142: 20.6. | B142: местный бюджет | C142: =SUM(D142:J142) -> 283.20066 | D142: 0 | E142: 0 | F142: 283.20066 | G142: 0 | H142: 0 | I142: =SUM(H142) -> 0 | J142: =SUM(I142) -> 0
A143: 20.7. | B143: областной бюджет | C143: =SUM(D143:J143) -> 0 | D143: 0 | E143: 0 | F143: 0 | G143: 0 | H143: 0 | I143: 0 | J143: 0
A144: 20.8. | B144: - Строительство сетей уличного освещения микрорайона Южный
A145: 20.9. | B145: Всего: | C145: =SUM(C146) -> 14175 | D145: 0 | E145: 0 | F145: 12046.79934 | G145: 2128.20066 | H145: 0 | I145: 0 | J145: 0 | K145: стр.28
A146: 20.10. | B146: местный бюджет | C146: =SUM(D146:J146) -> 14175 | D146: 0 | E146: 0 | F146: 12046.79934 | G146: 2128.20066 | H146: 0 | I146: =SUM(H146) -> 0 | J146: =SUM(I146) -> 0
A147: 20.11. | B147: областной бюджет | C147: =SUM(D147:J147) -> 0 | D147: 0 | E147: 0 | F147: 0 | G147: 0 | H147: 0 | I147: 0 | J147: 0
A148: 21. | B148: Мероприятие 5 - Разработка, экспертиза проектно-сметной документации на строительство сетей водоснабжения в Североуральском городском округе
A149: 21.1. | B149: Всего, из них | C149: =SUM(D149:J149) -> 0 | D149: =SUM(D150) -> 0 | E149: =SUM(E150) -> 0 | F149: 0 | G149: 0 | H149: 0 | I149: 0 | J149: 0 | K149: стр.31, введен с 2016 года
A150: 21.2. | B150: местный бюджет | C150: =SUM(D150:J150) -> 0 | D150: 0 | E150: 0 | F150: 0 | G150: 0 | H150: =SUM(G150) -> 0 | I150: =SUM(H150) -> 0 | J150: =SUM(I150) -> 0
A151: 22. | B151: Мероприятие 6 - Строительство сетей водоснабжения в Североуральском городском округе
A152: 22.1. | B152: Всего, из них | C152: =SUM(C153:C154) -> 0 | D152: =SUM(D153:D154) -> 0 | E152: =SUM(E153:E154) -> 0 | F152: 0 | G152: 0 | H152: 0 | I152: 0 | J152: 0 | K152: стр.32, введен с 2016 года
A153: 22.2. | B153: местный бюджет | C153: =SUM(D153:J153) -> 0 | D153: 0 | E153: 0 | F153: 0 | G153: 0 | H153: =SUM(G153) -> 0 | I153: 0 | J153: 0
A154: 22.3. | B154: областной бюджет | C154: =SUM(D154:J154) -> 0 | D154: 0 | E154: 0 | F154: 0 | G154: 0 | H154: 0 | I154: 0 | J154: 0
A155: 23. | B155: Мероприятие 7 - Разработка, экспертиза проектно-сметной документации на строительство котельных в Североуральском городском округе
A156: 23.1. | B156: Всего, из них | C156: =SUM(D156:J156) -> 2468.75051 | D156: =SUM(D157) -> 0 | E156: =SUM(E157) -> 0 | F156: 1792.6092 | G156: 676.14131 | H156: 0 | I156: 0 | J156: 0 | K156: стр.33
A157: 23.2. | B157: местный бюджет | C157: =SUM(D157:J157) -> 2468.75051 | D157: 0 | E157: 0 | F157: 1792.6092 | G157: 676.14131 | H157: 0 | I157: 0 | J157: =SUM(I157) -> 0
A158: 24. | B158: Мероприятие 8 - Строительство котельных в Североуральском городском округе
A159: 24.1. | B159: Всего, из них | C159: =SUM(C160:C161) -> 0 | D159: =SUM(D160:D161) -> 0 | E159: =SUM(E160:E161) -> 0 | F159: 0 | G159: 0 | H159: 0 | I159: 0 | J159: 0 | K159: стр.34, введен с 2016 года
A160: 24.2. | B160: местный бюджет | C160: =SUM(D160:J160) -> 0 | D160: 0 | E160: 0 | F160: 0 | G160: 0 | H160: 0 | I160: 0 | J160: =SUM(I160) -> 0
A161: 24.3. | B161: областной бюджет | C161: =SUM(D161:J161) -> 0 | D161: 0 | E161: 0 | F161: 0 | G161: 0 | H161: =SUM(G161) -> 0 | I161: =SUM(H161) -> 0 | J161: =SUM(I161) -> 0
A162: 25. | B162: 1.2. Иные капитальные вложения
A163: 25.1. | B163: Всего, в том числе | C163: =SUM(C164:C165) -> 5593.6 | D163: 4173.6 | E163: 1420 | F163: 0 | G163: 0 | H163: 0 | I163: 0 | J163: 0 | K163: Х
A164: 25.2. | B164: местный бюджет | C164: =SUM(D164:J164) -> 2249.2 | D164: =SUM(D172+D168) -> 829.2 | E164: =SUM(E172) -> 1420 | F164: 0 | G164: 0 | H164: 0 | I164: 0 | J164: 0
A165: 25.3. | B165: областной бюджет | C165: =SUM(D165:J165) -> 3344.4 | D165: =SUM(D173+D169) -> 3344.4 | E165: =SUM(E173) -> 0 | F165: 0 | G165: 0 | H165: 0 | I165: 0 | J165: 0
A166: 26. | B166: Мероприятие 1- Реконструкция, модернизация водопроводных сетей, сетей системы водоотведения с заменой (без замены) оборудования с более высоким КПД, установка регулируемого привода, реконструкция тепловых сетей, в том числе тепловых пунктов, котельных, капитальный ремонт систем коммунального хозяйства
A167: 26.1. | B167: Всего, в том числе: | C167: =SUM(C168:C169) -> 3037.4 | D167: 3037.4 | E167: 0 | F167: 0 | G167: 0 | H167: 0 | I167: 0 | J167: 0 | K167: стр.29
A168: 26.2. | B168: местный бюджет | C168: =SUM(D168:J168) -> 281 | D168: 281 | E168: 0 | F168: 0 | G168: 0 | H168: 0 | I168: 0 | J168: 0
A169: 26.3. | B169: областной бюджет | C169: =SUM(D169:J169) -> 2756.4 | D169: 2756.4 | E169: 0 | F169: 0 | G169: 0 | H169: =SUM(G169) -> 0 | I169: =SUM(H169) -> 0 | J169: =SUM(I169) -> 0
A170: 27. | B170: Мероприятие 3 - Закупка и установка осветительного оборудования с заменой неэффективного на энергосберегающее, в том числе замена ламп накаливания на энергосберегающие, строительство, модернизация сетей уличного освещения, проектно-сметные работы, экспертиза проектно-сметной документации
A171: 27.1. | B171: Всего, из них | C171: =SUM(C172:C173) -> 2556.2 | D171: =SUM(D172:D173) -> 1136.2 | E171: =SUM(E172:E173) -> 1420 | F171: 0 | G171: 0 | H171: 0 | I171: 0 | J171: 0 | K171: стр.28
A172: 27.2. | B172: местный бюджет | C172: =SUM(D172:J172) -> 1968.2 | D172: 548.2 | E172: 1420 | F172: 0 | G172: 0 | H172: 0 | I172: =SUM(H172) -> 0 | J172: 0
A173: 27.3. | B173: областной бюджет | C173: =SUM(D173:J173) -> 588 | D173: 588 | E173: 0 | F173: 0 | G173: 0 | H173: 0 | I173: 0 | J173: 0
A174: 28. | B174: 3. Прочие нужды
A175: 28.1. | B175: Всего по направлению «Прочие нужды», всего, в том числе: | C175: =SUM(D175:J175) -> 65660.75861 | D175: =SUM(D176:D177) -> 4991.9 | E175: =SUM(E176:E177) -> 1541.6 | F175: 1333.25861 | G175: 13600 | H175: 20418.5 | I175: 21775.5 | J175: 2000 | K175: Х
A176: 28.2. | B176: местный бюджет | C176: =SUM(D176:J176) -> 62660.75861 | D176: =SUM(D184+D189+D193+D196+D180) -> 1991.9 | E176: 1541.6 | F176: 1333.25861 | G176: 13600 | H176: 20418.5 | I176: 21775.5 | J176: 2000
A177: 28.3. | B177: областной бюджет | C177: =SUM(D177:J177) -> 3000 | D177: =SUM(D185+D190+D181) -> 3000 | E177: 0 | F177: 0 | G177: 0 | H177: 0 | I177: 0 | J177: 0
A178: 28.4. | B178: Мероприятие 1- Реконструкция, модернизация водопроводных сетей, сетей системы водоотведения с заменой (без замены) оборудования с более высоким КПД, установка регулируемого привода, реконструкция тепловых сетей, в том числе тепловых пунктов, котельных, капитальный ремонт систем коммунального хозяйства
A179: 28.5. | B179: Всего, в том числе: | C179: =SUM(C180:C181) -> 52551 | D179: 0 | E179: 0 | F179: 0 | G179: 13000 | H179: 19775.5 | I179: 19775.5 | J179: 0 | K179: стр.29
A180: 28.6. | B180: местный бюджет | C180: =SUM(D180:J180) -> 52551 | D180: 0 | E180: 0 | F180: 0 | G180: 13000 | H180: 19775.5 | I180: 19775.5 | J180: 0
A181: 28.7. | B181: областной бюджет | C181: =SUM(D181:J181) -> 0 | D181: 0 | E181: 0 | F181: 0 | G181: 0 | H181: =SUM(G181) -> 0 | I181: =SUM(H181) -> 0 | J181: =SUM(I181) -> 0
A182: 29. | B182: Мероприятие 2 - Оснащение зданий (строений, сооружений), находящихся в муниципальной собственности, многоквартирных жилых домов, жилых помещений, квартир приборами учета используемых энергетических ресурсов, в том числе разработка проектно-сметной документации
A183: 29.1. | B183: Всего, из них | C183: =SUM(D183:J183) -> 9377.55861 | D183: =SUM(D184:D185) -> 4200 | E183: 1100 | F183: 1250.40861 | G183: 427.15 | H183: 400 | I183: 1000 | J183: 1000 | K183: стр.22,23,24,25,26
A184: 29.2. | B184: местный бюджет | C184: =SUM(D184:J184) -> 6377.55861 | D184: 1200 | E184: 1100 | F184: 1250.40861 | G184: 427.15 | H184: 400 | I184: 1000 | J184: 1000
A185: 29.3. | B185: областной бюджет | C185: =SUM(D185:J185) -> 3000 | D185: 3000 | E185: =SUM(E186) -> 0 | F185: 0 | G185: 0 | H185: 0 | I185: 0 | J185: 0
A186: 29.4. | B186: федеральный бюджет | C186: =SUM(D186:J186) -> 0 | D186: 0 | E186: 0 | F186: 0 | G186: =SUM(F186) -> 0 | H186: =SUM(G186) -> 0 | I186: =SUM(H186) -> 0 | J186: =SUM(I186) -> 0
A187: 30. | B187: Мероприятие 3 - Закупка и установка осветительного оборудования с заменой неэффективного на энергосберегающее, в том числе замена ламп накаливания на энергосберегающие, строительство, модернизация сетей уличного освещения, проектно-сметные работы, экспертиза проектно-сметной документации
A188: 30.1. | B188: Всего, из них | C188: =SUM(C189:C190) -> 2591.9 | D188: =SUM(D189:D190) -> 411.9 | E188: =SUM(E189:E190) -> 180 | F188: 0 | G188: 0 | H188: 0 | I188: 1000 | J188: 1000 | K188: стр.28
A189: 30.2. | B189: местный бюджет | C189: =SUM(D189:J189) -> 2591.9 | D189: 411.9 | E189: 180 | F189: 0 | G189: 0 | H189: 0 | I189: 1000 | J189: 1000
A190: 30.3. | B190: областной бюджет | C190: =SUM(D190:J190) -> 0 | D190: 0 | E190: 0 | F190: 0 | G190: 0 | H190: =SUM(G190) -> 0 | I190: =SUM(H190) -> 0 | J190: =SUM(I190) -> 0
A191: 31. | B191: Мероприятие 4- Разработка схемы водоснабжения Североуральского городского округа
A192: 31.1. | B192: Всего, из них | C192: =SUM(D192:J192) -> 380 | D192: =SUM(D193) -> 380 | E192: =SUM(E193) -> 0 | F192: 0 | G192: 0 | H192: 0 | I192: 0 | J192: 0 | K192: стр.30
A193: 31.2. | B193: местный бюджет | C193: =SUM(D193:J193) -> 380 | D193: 380 | E193: 0 | F193: 0 | G193: =SUM(F193) -> 0 | H193: =SUM(G193) -> 0 | I193: =SUM(H193) -> 0 | J193: =SUM(I193) -> 0
A194: 32. | B194: Мероприятие 9- Прочие мероприятия в области энергосбережения (разработка технических заданий, топливно-энерготехнического баланса и т.п.)
A195: 32.1. | B195: Всего, из них | C195: =SUM(D195:J195) -> 760.3 | D195: =SUM(D196) -> 0 | E195: =SUM(E196) -> 261.6 | F195: 82.85 | G195: 172.85 | H195: 243 | I195: 0 | J195: 0 | K195: стр.35, с 2016 года стр. 36
A196: 32.2. | B196: местный бюджет | C196: =SUM(D196:J196) -> 760.3 | D196: 0 | E196: 261.6 | F196: 82.85 | G196: 172.85 | H196: 243 | I196: 0 | J196: =SUM(I196) -> 0
A197: 35. | B197: Подпрограмма 3: Развитие лесного хозяйства на территории Североуральского городского округа
A198: 35.1. | B198: Всего по подпрограмме 1, всего, в том числе | C198: =SUM(C199:C199) -> 2840.19 | D198: =SUM(D199) -> 774.1 | E198: =SUM(E199) -> 881.1 | F198: 0 | G198: 0 | H198: 184.99 | I198: 500 | J198: 500 | K198: Х
A199: 35.2 | B199: местный бюджет | C199: =SUM(D199:J199) -> 2840.19 | D199: =SUM(D211) -> 774.1 | E199: =SUM(E211) -> 881.1 | F199: 0 | G199: 0 | H199: 184.99 | I199: 500 | J199: 500
A200: 36. | B200: 1. Капитальные вложения
A201: 36.1. | B201: Всего по направлению «Капитальные вложения», всего, в том числе | C201: 0 | D201: 0 | E201: 0 | F201: 0 | G201: 0 | H201: 0 | I201: 0 | J201: 0 | K201: Х
... 268 more rows

Sheet Лист2

Sheet Лист3
